Cogmind - Beta 17.1 @@@ ROGUE MODE // 2026.09.19 @ 17:59:16 Player: MORONI274 Result: Destroyed by Y-45 Defender with Beam Rifle Performance ------------- Evolutions (1) 500 Regions Visited (2) 400 Robots Destroyed (36) 180 Value Destroyed (676) 676 Prototype IDs (1) 20 Alien Tech Used (0) 0 Bonus (0) 0 TOTAL SCORE: 1776 Bonus ------- None Cogmind --------- Core Integrity 0/400 Matter 89/300 Energy 13/100 System Corruption 18% Temperature Cool (42) Movement Walking (130) Location -9/Materials Parts ------- > --- POWER (1) -------- (None) > --- PROPULSION (3) --- Titanium Leg Titanium Leg > --- UTILITY (3) ------ (None) > --- WEAPON (2) ------- Field Laser > --- INVENTORY (5) ---- Disposable Heat Sink Improved Terrain Scanner Medium Laser Beam Rifle Mining Claw Peak State ------------ > --- POWER ------------ (None) > --- PROPULSION ------- Titanium Leg Titanium Leg > --- UTILITY ---------- Small Storage Unit Hacking Suite > --- WEAPON ----------- Field Laser > --- INVENTORY -------- Disposable Heat Sink Weight Redist. System Improved Terrain Scanner Medium Laser Beam Rifle Grenade Launcher Mining Claw [Rating: 14] Favorites ----------- Power Light Ion Engine Engine Light Ion Engine Propulsion Light Treads Treads Light Treads Leg Aluminum Leg Wheel Wheel Hover Unit Backup Propulsion I Flight Unit VTOL Module Utility Small Storage Unit Device Sensor Array Storage Small Storage Unit Processor Improved Targeting Computer Hackware Hacking Suite Weapon Medium Laser Energy Gun Medium Laser Ballistic Gun Light Assault Rifle Launcher Grenade Launcher Impact Weapon Maul Slashing Weapon Mining Claw Build | -11 -10 -9 ------- Run | Yrd Mat Mat Slots Evolved 2 | . . 2 Power . | . . . Propulsion 1 | . . 1 Utility 1 | . . 1 Weapon . | . . . Parts Attached 31 | 7 11 13 Power 4 | 1 2 1 Engine 4 | 1 2 1 Core . | . . . Reactor . | . . . Propulsion 9 | 2 2 5 Treads 2 | 2 . . Leg 3 | . . 3 Wheel 2 | . 1 1 Hover 1 | . 1 . Flight 1 | . . 1 Utility 8 | 2 2 4 Device 5 | 1 2 2 Storage 1 | 1 . . Processor 1 | . . 1 Hackware 1 | . . 1 Protection . | . . . Artifact . | . . . Weapon 10 | 2 5 3 Energy Gun 4 | 2 . 2 Energy Cannon . | . . . Ballistic Gun 2 | . 2 . Ballistic Cannon . | . . . Launcher 2 | . 2 . Special Weapon . | . . . Impact Weapon 1 | . . 1 Slashing Weapon 1 | . 1 . Piercing Weapon . | . . . Special Melee Weapon . | . . . Unidentified Prototypes 1 | . . 1 Parts Lost 22 | . 11 11 Power 3 | . 3 . Propulsion 7 | . 3 4 Utility 6 | . 2 4 Weapon 6 | . 3 3 Highest Loss Streak 5 | . 4 5 To Critical Strikes 1 | . . 1 Average Backups 7 | 6 7 7 Power . | . . . Propulsion 2 | 3 3 . Utility 2 | 1 1 3 Weapon 1 | . 1 3 Tool/Special . | . . . Unused Backups 3 | . 2 1 Power . | . . . Propulsion 1 | . 1 . Utility 2 | . 1 1 Weapon . | . . . Tool/Special . | . . . Average Slot Usage (%) 77 | . 91 55 Engine 7 | . 12 . Treads 10 | . 17 . Leg 1 | . . 4 Wheel 6 | . 6 5 Hover 3 | . . 6 Device 9 | . 11 7 Storage 12 | . 14 9 Processor 1 | . . 3 Energy Gun 8 | . 13 1 Ballistic Gun 5 | . 8 . Launcher 2 | . 1 4 Impact Weapon 1 | . . 2 Slashing Weapon 5 | . 3 7 Peak Build Rating 14 | 9 9 14 Average Rating 7 | 8 7 7 On Entrance 4 | . 9 5 Avg Prop Armor Cover (%) 11 | . 14 7 Naked Turns . | . . . Heaviest Build 14 | 13 14 12 Greatest Support 40 | 40 40 23 Greatest Overweight (x) 3 | . 3 3 Average Overweight (x) . | . . . Largest Inventory Capacity 8 | 8 8 8 Average Capacity 7 | 7 8 7 Most Carried 8 | 7 8 8 Average Carried 7 | 6 7 7 Final Capacity 8 | 8 8 5 Final Carried 7 | 7 6 5 Class Distribution -------------------- 100% | Mutant Dominant Class ---------------- Mutant | -10/Materials Mutant | -9/Materials Resources | -11 -10 -9 ----------- Run | Yrd Mat Mat Matter Collected 481 | 270 164 47 Remotely . | . . . Salvage Created 760 | 32 550 178 Parts 52 | 8 29 15 Haulers Intercepted 1 | . 1 . Recyclers Shooed 4 | . 4 . Parts Field Recycled . | . . . Retrieved Matter . | . . . Parts Self-Destructed . | . . . Prevented . | . . . Parts Restored . | . . . Kills | -11 -10 -9 ------- Run | Yrd Mat Mat Combat Hostiles Destroyed 27 | . 17 10 Guns 9 | . 9 . AOE 18 | . 8 10 Classes Destroyed 9 | 1 6 2 Worker 1 | . 1 . Builder 1 | . . 1 Tunneler 2 | 2 . . Hauler 1 | . 1 . Operator 3 | . 3 . Watcher 1 | . 1 . Swarmer 15 | . 9 6 Grunt 11 | . 8 3 Brawler 1 | . . 1 Best Kill Streak 6 | 2 6 6 Combat Bots Only 6 | . 6 6 Max Kills in Single Turn 4 | 2 2 4 Gunslinging 1 | . 1 . Exploded 4 | . 2 4 Melee . | . . . Uniques/NPCs Destroyed . | . . . Combat | -11 -10 -9 -------- Run | Yrd Mat Mat Hostile Shots Fired 229 | . 116 113 Missed 50 | . 27 23 Hits 179 | . 89 90 Melee 6 | . . 6 Projectile 173 | . 89 84 Critical Strikes 4 | . 1 3 Damage Taken 2215 | . 1005 1210 Core 596 | . 184 412 Absorbed by Shields . | . . . Regen/Repaired (Parts) 96 | . . 96 Core Remaining (%) 63 | 100 26 . Volleys Fired 71 | 1 63 7 Largest 2 | 2 2 2 Hottest 93 | 90 90 93 Shots Fired 132 | 2 121 9 Gun 121 | 2 115 4 Cannon . | . . . Launcher 11 | . 6 5 Special . | . . . Kinetic 60 | . 60 . Thermal 56 | 1 51 4 Explosive 11 | . 6 5 Electromagnetic 5 | 1 4 . Robot Hit Streak 8 | 1 8 7 Robot Miss Streak 4 | . 4 1 Penetration Max . | . . . Secondary Targets 4 | . 4 . Max Gunslinging Chain 1 | . 1 . Shots Hit Robots 89 | 1 76 12 Core Hits 58 | 2 39 17 Critical Kills . | . . . Critical Parts Destroyed 1 | . 1 . Critical Strikes 4 | . 4 . Burn 3 | . 3 . Destroy 1 | . 1 . Melee Attacks 15 | . 6 9 Impact 8 | . . 8 Slashing 7 | . 6 1 Piercing . | . . . Sneak Attacks 1 | . 1 . Combat Hostiles . | . . . Follow-up Attacks . | . . . Damage Inflicted 2234 | 27 1403 804 Guns 780 | 27 705 48 Cannons . | . . . Explosions 1216 | . 624 592 Melee 221 | . 61 160 Ramming 17 | . 13 4 Kinetic 295 | . 295 . Thermal 437 | 12 377 48 Explosive 1134 | . 542 592 Electromagnetic 130 | 15 115 . Impact 160 | . . 160 Slashing 61 | . 61 . Piercing . | . . . Highest Corruption 18 | . 1 18 Average Corruption 13 | . 1 15 Corruption Purged . | . . . Corruption Blocked . | . . . Effects 5 | . . 5 Message Errors 2 | . . 2 Matter Fused 2 | . . 2 Misdirections 1 | . . 1 Overload Shots . | . . . Overflow Damage 109 | . 46 63 Projectiles . | . . . Explosions 88 | . 46 42 Melee 21 | . . 21 Knockbacks 1 | . . 1 Impact 1 | . . 1 Kinetic . | . . . Secondary . | . . . Self-Inflicted Damage 226 | . 75 151 Shots 7 | . 3 4 Rammed 4 | . 3 1 Targets Rammed 4 | . 3 1 Kicked . | . . . Crushed . | . . . Highest Temperature 129 | 30 129 33 Average Temperature 45 | 18 46 19 Received Heat Transfer 561 | . 288 273 Siege Activations . | . . . Martial Activations . | . . . Shielding Activations . | . . . Robots Disrupted 1 | . 1 . Combat Hostiles 1 | . 1 . Robots Corrupted . | . . . Combat Hostiles . | . . . Parts Fried . | . . . Impact Corruptions 1 | . . 1 Robots Melted . | . . . Combat Hostiles . | . . . Parts Melted 3 | . 3 . Heat Transferred 1480 | 37 1332 111 Parts Sabotaged . | . . . Parts Stolen . | . . . Parts Stripped . | . . . Power Chain Reactions . | . . . Alert | -11 -10 -9 ------- Run | Yrd Mat Mat Maximum Alert Level 1 | . 1 . Low Security (%) 90 | 100 80 100 Level 1 9 | . 19 . Level 2 . | . . . Level 3 . | . . . Level 4 . | . . . Level 5 . | . . . High Security . | . . . Max Security . | . . . Peak Influence 233 | 10 233 176 Initial 59 | . . 59 Average 72 | . 138 24 Influence Increases 928 | 10 543 375 Destroy 0b10 Robot/C 540 | . 340 200 Destroy 0b10 Robot/NC 45 | 10 30 5 Destroy Leader 114 | . 74 40 Successful Hack 3 | . . 3 Disable Machine 45 | . 30 15 Destroy Structure 76 | . 39 37 Lose Combat Pursuer 105 | . 30 75 Influence Decreases 752 | 10 402 340 Entered New Map 82 | . . 82 Time Decay 470 | 10 292 168 Lost Part 200 | . 110 90 Squads Dispatched 6 | . 4 2 Investigation 2 | . 1 1 Extermination . | . . . Reinforcement 4 | . 3 1 Assault . | . . . Garrison . | . . . Intercept . | . . . Searches Triggered . | . . . Construction Impeded 1 | . . 1 Haulers Reinforced . | . . . Active Scanning Responses . | . . . Cargo Convoy Interrupts . | . . . Stealth | -11 -10 -9 --------- Run | Yrd Mat Mat Distress Signals 6 | . 4 2 Communications Jammed . | . . . Distress Signals . | . . . Times Spotted 49 | . 29 20 Peak Tracking Total 9 | . 5 9 Tactical Retreats 5 | . 2 3 Traps | -11 -10 -9 ------- Run | Yrd Mat Mat Traps Triggered 3 | . 3 . Indirectly . | . . . Trap Hack Attempts . | . . . Triggered . | . . . Disarmed . | . . . Reprogrammed . | . . . Reused . | . . . Traps Extracted . | . . . Installed . | . . . Triggered . | . . . Machines | -11 -10 -9 ---------- Run | Yrd Mat Mat Machines Disabled 3 | . 2 1 Max in Single Turn 2 | . 2 1 Machines Repaired . | . . . Machines Dismantled . | . . . Machines Sabotaged . | . . . Overloaded Fab Kills . | . . . Hacking | -11 -10 -9 --------- Run | Yrd Mat Mat Machines Accessed 2 | . . 2 Terminals 1 | . . 1 Fabricators . | . . . Repair Stations 1 | . . 1 Recycling Units . | . . . Scanalyzers . | . . . Garrison Access . | . . . Total Hacks 7 | . . 7 Successful 2 | . . 2 Failed 5 | . . 5 Catastrophic 2 | . . 2 Database Lockouts . | . . . Manual . | . . . Terminals 5 | . . 5 Fabricators . | . . . Repair Stations 2 | . . 2 Recycling Units . | . . . Scanalyzers . | . . . Garrison Access . | . . . Terminal Hacks . | . . . Fabricator Hacks . | . . . Repair Station Hacks 2 | . . 2 Scan Component 1 | . . 1 Repair 1 | . . 1 Recycling Unit Hacks . | . . . Scanalyzer . | . . . Garrison Access Hacks . | . . . Unauthorized Hacks . | . . . Terminals . | . . . Fabricators . | . . . Repair Stations . | . . . Recycling Units . | . . . Scanalyzers . | . . . Garrison Access . | . . . Data Cores Recovered . | . . . Used . | . . . Hacking Detections 1 | . . 1 Full Trace Events 1 | . . 1 Feedback Events . | . . . Feedback Blocked . | . . . Robot Schematics Acquired . | . . . Robots Built . | . . . Authchips . | . . . Time . | . . . Total Robot Build Rating . | . . . Part Schematics Acquired . | . . . Parts Built . | . . . Authchips . | . . . Time . | . . . Total Part Build Rating . | . . . Part Studies Acquired . | . . . Parts Repaired 1 | . . 1 Time 26 | . . 26 Parts Recycled . | . . . Recycled Matter . | . . . Retrieved Matter . | . . . Retrieved Components . | . . . Parts Scanalyzed . | . . . Part Schematics Acquired . | . . . Parts Damaged . | . . . Bothacking | -11 -10 -9 ------------ Run | Yrd Mat Mat Used RIF Installer . | . . . Robots Hacked . | . . . Non-combat . | . . . Combat . | . . . Robot Hacks Applied . | . . . Relay Couplers Released . | . . . Fabnet Peak Effective % . | . . . Robots Rewired . | . . . Allies Hacked . | . . . Hacks Repelled . | . . . Allies | -11 -10 -9 -------- Run | Yrd Mat Mat Total Allies . | . . . Largest Group . | . . . Highest-Rated Group . | . . . Highest-Rated Ally . | . . . Total Orders . | . . . Ally Attacks . | . . . Total Damage . | . . . Kills . | . . . Allies Corrupted . | . . . Allies Melted . | . . . Intel | -11 -10 -9 ------- Run | Yrd Mat Mat Active Infowar (turns) 1139 | 310 650 179 Sensors 337 | . 337 . Terrain 328 | 310 18 . Structural 179 | . . 179 Seismic 295 | . 295 . Robot Analysis Total . | . . . Derelict Logs Recovered . | . . . Drone Launches . | . . . Drone Recoveries . | . . . Exploration | -11 -10 -9 ------------- Run | Yrd Mat Mat Turns Passed 1638 | 382 779 477 Spaces Moved 854 | 96 469 289 Core 107 | 4 6 97 Treads 231 | 92 139 . Legs 71 | . . 71 Wheels 366 | . 298 68 Hover 73 | . 26 47 Flight 6 | . . 6 Fastest Speed 50 | 50 80 50 Average Speed 126 | 155 118 130 Slowest Speed 200 | 160 200 200 Overloaded Moves . | . . . Propulsion Burnouts . | . . . Robots Hopped . | . . . Potential Cave-ins . | . . . Cave-ins Triggered . | . . . Exploration Rate (%) 36 | 6 78 25 Regions Visited 2 Branch Regions . Pre-discovered Areas . | . . . Known Exits Taken . | . . . Unknown Exits Taken 2 | 1 1 . Scrap Searched . | . . . Spaces Dug 4 | . 2 2 Terrain Destroyed 71 | . 37 34 Melee 4 | . 2 2 Projectile . | . . . AOE 67 | . 35 32 Terrain Rammed . | . . . Walls Destroyed . | . . . Machines Disabled . | . . . Actions | -11 -10 -9 --------- Run | Yrd Mat Mat Total 1247 | 323 567 357 Wait 237 | 213 1 23 Move 852 | 95 468 289 Hop . | . . . Pick Up 20 | 7 6 7 Fast Attach 20 | 7 4 9 Attach 9 | . 4 5 Detach 2 | . . 2 Swap 13 | . 9 4 Drop 4 | . 3 1 Fire 71 | 1 63 7 Melee 15 | . 6 9 Ram 2 | . 1 1 Kick . | . . . Crush 2 | . 2 . Escape Stasis . | . . . Rewire . | . . . Trap . | . . . Miscellaneous . | . . . Route ------- -11/Scrapyard -10/Materials (discovered 3 exits: *Mat x2 / [*Min]) -9/Materials History --------- Turn | Location | Event 36 | -11/Scrapyard | Discovered new exit (range 16) 383 | -11/Scrapyard | Entered Materials 384 | -10/Materials | Build established: Mutant 732 | -10/Materials | Discovered new exit (range 14) 959 | -10/Materials | Discovered new exit (range 16) 1009 | -10/Materials | Core integrity fell below 50% 1130 | -10/Materials | Discovered new exit (range 11) 1149 | -10/Materials | Lost 4 parts (1p1n1u1w) 1162 | -10/Materials | Entered another Materials area 1162 | -9/Materials | Evolved 2 slots: Propulsion x1, Utility x1 1273 | -9/Materials | Repaired Sml. Storage Unit 1481 | -9/Materials | System corruption reached 10% 1502 | -9/Materials | Core integrity fell below 50% 1513 | -9/Materials | Lost 5 parts (3n1u1w) 1537 | -9/Materials | Core integrity fell below 20% 1557 | -9/Materials | Lost 3 parts (1n1u1w) 1639 | -9/Materials | Destroyed by Y-45 Defender with Beam Rifle Last Messages --------------- 01529_ System corrupted: Matter fused (-5). 01563_ W-16 Scout sends out distress signal. 01579_ Connecting with Terminal... 01579_ K-01 Serf cleans the Terminal. 01580_ Connecting with Terminal... 01580_ ALERT: Suspicious activity at Terminal M003. Dispatching Investigation squad. 01583_ Slammed into K-01 Serf. 01608_ Acquired Titanium Leg. 01615_ Acquired Field Laser. 01618_ Sml. Storage Unit destroyed. 01622_ Acquired Grenade Launcher. 01624_ YRQH9TZOL HGK NXV WAI:4P5HHERT3M0H2X 01627_ Hacking Suite destroyed. 01633_ S-10 Pest destroyed. 01633_ Destroyed Flight Unit. 01633_ S-10 Pest destroyed. 01636_ G-34 Mercenary destroyed. 01636_ B-36 Bruiser destroyed. 01636_ Grenade Launcher destroyed. Map ----- +----------------------------------------------------+ | | | ???????????????????????????????????????????????? | | ???????????????????????????????????????????????? | | ???????????????????????????????????????????????? | | ???????????????????????????????????????????????? | | ???????????????????????????????????????????????? | | ???????????????????????????????????????????????? | | ???????????????????????????????????????????????? | | ???????????????????????????????????????????????? | | ???????????????????????????????????????????????? | | ???????????????????????????????????????????????? | | ??????????????????? ???????????????????????????? | | ????????????????? ##?????????????????????????? | | ?????????????????? #????????????????????????? | | ?????????????????? ????????????????????????? | | ?????????????????? #????????????????????????? | | ?????????????????? #????????????????????????? | | ?????????????????## ##???????????????????????? | | ?????????????????# ####????????????????????? | | ?????????????????# ?????????????????????? | | ?????????????????+ k ??????????????????????? | | ?????????????????# ???????????????????????? | | ?????????????????# #####???????????????????? | | ?????????????????# ####????????????????? | | ?????????????????# Y = #????????????????? | | ?????????????????# %[ =%@ ]#????????????????? | | ?????????######### =%* = #????????????????? | | ?????????# Y =* ####????????????????? | | ?????????# ####### ! #####???????????????????? | | ?????????# #?????# #?????????????????????? | | #????????# #?????##==[ #?????????????????????? | | #????????# #??????#==[[==#?????????????????????? | | #????????# #??????########?????????????????????? | | #????????# #???????????????????????????????????? | | #????????# #???????????????????????????????????? | | ########## ##?????????????????? ?????????????? | | ##########/##?????????????????# #????????????? | | ?## ##?????????????????# #????????????? | | ?## """ ##?????????????????# #????????????? | | ### "T" ##?????????????????# #????????????? | | / ##?????????????????# #????????????? | | ### ##?????????????????# #????????????? | | ?## """ ###########????????# #????????????? | | ?## """ ###########????????# #????????????? | | ?## """ # ! ##????????# #????????????? | | ### # ##????????# +????????????? | | #######+#### "" ########### #????????????? | | # "" # # #????????????? | | +% """ # # #####????????? | | # % """ # # #????????? | +----------------------------------------------------+ Best States ------------- Heat Dissipation 28 Energy Generation 10 Energy Capacity 125 Matter Stores 300 Matter Capacity 300 Sight Range 16 Robot Scan Range 14 Terrain Scan Range 16 Terrain Scan Density 10 Additional Mass Support 6 Evasion (%) 50 Targeting Accuracy 6 Recoil Reduction 2 Offensive Hacking 10 Item Schematics ----------------- None Robot Schematics ------------------ None Fabricated ------------ Nothing Repaired ---------- Sml. Storage Unit | 36% | -9/Materials Studied --------- None Alien Tech Used ----------------- None Achievements -------------- None Challenges ------------ None Game ------ Seed DynamicFlyingDisplacer Manual? 0 Play Time 00:12:57 Cumulative 20.4 hours Start 2026.09.19 @ 17:46:44 End 2026.09.19 @ 17:59:16 Sessions 1 Manual Loads 0 Difficulty Rogue Special Mode None Game No. 45 Rogue 45 Adventurer 0 Explorer 0 Win Type - Total 0 Types 0/0/0/0/0/0/0/0/0/0 Lore% 12 Gallery% 20 Achievement% 17 Wizard Run 0 Options --------- Layout 1 ASCII 0 Keyboard 0 Movement Arrows Keybinds 0 Fullscreen 2 Font 24/Smallcaps Map View 50x35 Zoom Use 0% Tactical HUD 1 Map Filters NONE Filters NONE Steam 1 RUN: 2289d393-873c-4a3b-975a-ba06f37c3b11